bitfinex-derivatives/quotes_BTCF0:USTF0_20251207
["timestamp","ask_amount","ask_price","bid_price","bid_amount"]
[1765146988746,0.12931,90001.0,90000.0,0.00716658]
[1765146988944,0.1404201,90001.0,90000.0,0.00716658]
[1765146989449,0.1404201,90001.0,89977.0,0.099]
[1765146989450,0.12831,89981.0,89980.0,0.0111126]
[1765146989749,0.12831,89981.0,89960.0,0.13922611]
[1765146989955,0.02561,89999.0,89965.0,0.0111145]
[1765146989956,0.06527,89966.0,89965.0,0.0111145]
[1765146990462,0.12831,89966.0,89965.0,0.0111145]
[1765146991555,0.12831,89966.0,89964.0,0.02]
[1765146991757,0.12831,89958.0,89957.0,0.00016669]
[1765146994163,0.002,89958.0,89957.0,0.13194669]
[1765146994853,0.07910499,89990.0,89973.0,0.1729935]
[1765146995156,0.07910499,89983.0,89973.0,0.1729935]
[1765146995356,0.07910499,89990.0,89973.0,0.1729935]
[1765146997161,0.00216669,89974.0,89973.0,0.1739935]
[1765146997747,0.00216669,89974.0,89973.0,0.1839935]
[1765146997949,0.13047669,89974.0,89973.0,0.0849435]
[1765146998153,0.13047669,89974.0,89957.0,0.00016669]
[1765146998358,0.12831,89958.0,89957.0,0.00016669]
[1765147000355,0.12831,89947.0,89946.0,8.814e-05]
[1765147001751,0.13031,89947.0,89946.0,0.01008814]
[1765147006360,0.13031,89947.0,89946.0,0.12579814]
[1765147006559,0.002,89947.0,89946.0,0.12579814]
[1765147010360,0.12082,89947.0,89946.0,0.01008814]
[1765147014571,0.11882,89939.0,89938.0,0.00016669]
[1765147014760,0.11882,89921.0,89917.0,0.0111204]
[1765147014961,0.06263,89918.0,89917.0,0.0729204]
[1765147015470,0.06263,89918.0,89917.0,0.1268304]
[1765147015763,0.06271814,89918.0,89917.0,0.1268304]
[1765147016564,0.06263,89914.0,89913.0,0.0111209]
[1765147016863,0.11882,89914.0,89909.0,0.06012112]
[1765147017059,0.06263,89908.0,89907.0,0.12192112]
[1765147017370,0.11882,89901.0,89900.0,0.06012112]
[1765147017567,0.11882,89901.0,89899.0,0.07124372]
[1765147017568,0.11882,89900.0,89899.0,0.07124372]
[1765147017775,0.11882,89896.0,89895.0,0.06012112]
[1765147018069,0.11882,89896.0,89894.0,0.0111232]
[1765147018070,0.11882,89895.0,89894.0,0.0111232]
[1765147018973,0.11882,89889.0,89888.0,0.011124]
[1765147019568,0.11882,89889.0,89873.0,7.989e-05]
[1765147019569,0.11882,89883.0,89882.0,0.0111248]
[1765147019970,0.11882,89883.0,89873.0,0.06020101]
[1765147019971,0.11882,89874.0,89873.0,7.989e-05]
[1765147020171,0.11890814,89874.0,89873.0,7.989e-05]
[1765147020469,0.11882,89864.0,89863.0,0.00989809]
[1765147020868,0.11882,89854.0,89853.0,0.0111283]
[1765147021080,0.00016688,89872.0,89869.0,0.0111263]
[1765147021376,0.10375,89870.0,89869.0,0.0111263]
[1765147021577,0.10387931,89870.0,89869.0,0.0111263]
[1765147021968,0.00012931,89870.0,89869.0,0.1492563]
[1765147022769,0.05321931,89870.0,89869.0,0.1167363]
[1765147023175,0.10387931,89870.0,89869.0,0.0614663]
[1765147023368,0.10387931,89870.0,89869.0,0.0644663]
[1765147023369,0.10787931,89870.0,89869.0,0.0644663]
[1765147024172,0.00412931,89870.0,89869.0,0.1522563]
[1765147024876,0.00016688,89872.0,89871.0,0.10561]
[1765147024877,9e-08,89872.0,89871.0,0.10561]
[1765147025070,0.10375,89905.0,89904.0,0.011122]
[1765147026068,0.05309,89910.0,89909.0,0.0111214]
[1765147026275,0.10375,89910.0,89909.0,0.0111214]
[1765147026671,0.10375,89910.0,89909.0,0.0614614]
[1765147026878,0.00016688,89913.0,89912.0,0.10561]
[1765147026879,8e-08,89913.0,89912.0,0.10561]
[1765147027075,0.13257605,89940.0,89922.0,0.03252]
[1765147027379,0.10375,89938.0,89937.0,0.0111179]
[1765147027575,0.05309,89943.0,89922.0,0.03252]
[1765147027781,0.05309,89943.0,89922.0,0.22252]
[1765147028079,0.13257605,89940.0,89924.0,0.00016678]
[1765147028873,0.13257605,89940.0,89928.0,0.011119]
[1765147029180,0.00016678,89941.0,89928.0,0.011119]
[1765147029674,0.10375,89925.0,89924.0,0.00016678]
[1765147030877,0.10675,89925.0,89924.0,0.01116678]
[1765147032286,0.10675,89925.0,89924.0,0.00916678]
[1765147032675,0.10675,89925.0,89901.0,0.06012112]
[1765147032676,0.50675,89925.0,89900.0,0.06012112]
[1765147032880,0.05309,89899.0,89898.0,0.0111228]
[1765147033685,0.05309,89899.0,89898.0,0.0669528]
[1765147033982,0.00016678,89907.0,89901.0,0.0111224]
[1765147034587,0.00016678,89907.0,89906.0,0.10796]
[1765147035287,0.004,89925.0,89924.0,0.10796]
[1765147035488,0.16379605,89950.0,89935.0,0.0111182]
[1765147035686,0.0111135,89973.0,89955.0,0.0111157]
[1765147035880,0.13257605,89970.0,89955.0,0.0111157]
[1765147036476,0.05309,89956.0,89955.0,0.0111157]
[1765147036682,0.00016678,89971.0,89955.0,0.0111157]
[1765147036683,0.00016678,89971.0,89968.0,0.0111141]
[1765147036885,0.00016678,89971.0,89970.0,0.10796]
[1765147038990,0.00516678,89971.0,89970.0,0.11096]
[1765147039187,0.05825678,89971.0,89970.0,0.003]
[1765147039487,0.10569,89955.0,89954.0,0.00016678]
[1765147042085,0.11269,89955.0,89954.0,0.00116678]
[1765147045491,0.11269,89955.0,89930.0,0.13257605]
[1765147045492,0.05309,89928.0,89927.0,0.0111192]
[1765147045693,0.02074,89950.0,89910.0,0.16578605]
[1765147045694,0.13257605,89940.0,89911.0,0.0111212]
[1765147045888,0.02074,89950.0,89914.0,0.0111207]
[1765147045889,0.011119,89929.0,89914.0,0.0111207]
[1765147046093,0.10569,89915.0,89914.0,0.0111207]
[1765147046290,0.10569,89915.0,89910.0,0.03321]
[1765147046491,0.05309,89910.0,89909.0,0.0111214]
[1765147047290,0.00016678,89923.0,89909.0,0.1190814]
[1765147047494,0.10569,89914.0,89913.0,0.0111209]
[1765147048599,0.10569,89914.0,89908.0,0.0111214]
[1765147048999,0.10569,89912.0,89911.0,0.0111211]
[1765147049594,0.05309,89907.0,89906.0,0.01128848]
[1765147050692,0.007,89914.0,89907.0,0.0111217]
[1765147050892,0.10569,89908.0,89907.0,0.0111217]
[1765147051200,0.05309,89908.0,89907.0,0.1190817]
[1765147051586,0.004,89914.0,89906.0,0.00016678]
[1765147051587,0.05309,89912.0,89911.0,0.0111211]
[1765147051792,0.10569,89912.0,89911.0,0.0111211]
[1765147052000,0.13257605,89920.0,89919.0,0.10796]
[1765147052199,0.00016678,89923.0,89922.0,0.10796]
[1765147052700,0.15331605,89950.0,89937.0,0.011118]
[1765147052905,0.13257605,89950.0,89937.0,0.011118]
[1765147053099,0.13257605,89950.0,89940.0,0.0111175]
[1765147053399,0.10569,89947.0,89946.0,0.0111168]
[1765147053598,0.10569,89947.0,89936.0,0.03321]
[1765147053599,0.10569,89947.0,89939.0,0.0111177]
[1765147054997,0.05309,89947.0,89946.0,0.05583]
[1765147055300,0.00016678,89952.0,89947.0,0.0111167]
[1765147055696,0.05309,89948.0,89942.0,0.0111172]
[1765147056298,0.006,89947.0,89942.0,0.0111172]
[1765147056798,0.00016678,89952.0,89951.0,0.10796]
[1765147056999,0.00016678,89952.0,89951.0,0.11798048]
[1765147057206,0.09012732,89979.0,89951.0,0.11798048]
[1765147057207,0.09012732,89979.0,89971.0,0.0111137]
[1765147057900,0.13257605,89980.0,89967.0,0.0111142]
[1765147058093,0.13257605,89980.0,89970.0,0.0111138]
[1765147058907,0.005,89979.0,89970.0,0.0111138]
[1765147059401,0.13257605,89980.0,89970.0,0.0111138]
[1765147059606,0.004,89980.0,89970.0,0.0111138]
[1765147060999,0.00016678,89982.0,89970.0,0.0111138]
[1765147061212,0.004,89979.0,89970.0,0.0111138]
[1765147061600,0.004,89980.0,89970.0,0.0111138]
[1765147062107,0.09951,89967.0,89966.0,0.0111143]
[1765147062404,0.09951,89966.0,89965.0,0.00016678]
[1765147063210,0.05078,89966.0,89965.0,0.09969678]
[1765147063400,0.09951,89966.0,89965.0,0.00016678]
[1765147064507,0.09951,89966.0,89938.0,0.06012112]
[1765147064508,0.09951,89943.0,89936.0,0.03980244]
[1765147064708,0.09951,89943.0,89934.0,0.03198]
[1765147064908,0.09951,89943.0,89942.0,0.1106473]
[1765147066212,0.05078,89947.0,89946.0,0.0111168]
[1765147066406,0.00016678,89951.0,89950.0,0.09953]
[1765147067700,0.00416678,89951.0,89950.0,0.09953]
[1765147070209,0.00016678,89951.0,89950.0,0.09953]
[1765147070409,0.09951,89950.0,89949.0,0.0111164]
[1765147071319,0.09951,89945.0,89944.0,0.0111171]
[1765147071520,0.09951,89945.0,89944.0,0.0632871]
[1765147072913,0.09951,89945.0,89944.0,0.0111171]
[1765147073118,0.09951,89945.0,89944.0,0.0632871]
[1765147073622,0.10351,89945.0,89944.0,0.0632871]
[1765147073822,0.10351,89945.0,89944.0,0.0111171]
[1765147074019,0.09951,89945.0,89944.0,0.0111171]
[1765147074218,0.10351,89945.0,89944.0,0.0111171]
[1765147076420,0.10351,89945.0,89937.0,0.03980244]
[1765147076622,0.10351,89945.0,89934.0,0.00016678]
[1765147076623,0.08985,89935.0,89934.0,0.01128508]
[1765147077423,0.08985,89935.0,89934.0,0.05785508]
[1765147077624,0.08985,89935.0,89934.0,0.00016678]
[1765147078014,0.09385,89935.0,89934.0,0.00016678]
[1765147078421,0.09385,89935.0,89934.0,0.04673678]
[1765147078729,0.004,89935.0,89934.0,0.08961678]
[1765147079030,0.05033,89935.0,89934.0,0.08961678]
[1765147081016,0.004,89935.0,89934.0,0.48961678]
[1765147081224,0.00016678,89951.0,89950.0,0.08945]
[1765147081522,0.00016678,89951.0,89950.0,0.12932484]
[1765147082315,0.09001678,89951.0,89950.0,0.12932484]
[1765147082514,0.09001678,89951.0,89950.0,0.04657]
[1765147082920,0.00016678,89951.0,89950.0,0.08945]
[1765147083219,0.00016678,89951.0,89950.0,0.12933342]
[1765147083524,0.00016678,89951.0,89950.0,0.08945]
[1765147083719,0.00616678,89951.0,89950.0,0.08945]
[1765147084620,0.00016678,89951.0,89950.0,0.09145]
[1765147084822,0.00416678,89951.0,89950.0,0.09145]
[1765147085224,0.09401678,89951.0,89950.0,0.09145]
[1765147085420,0.09401678,89951.0,89950.0,0.002]
[1765147086426,0.04633,89948.0,89947.0,0.03989525]
[1765147087127,0.04633,89948.0,89947.0,0.0111167]
[1765147087316,0.08985,89948.0,89947.0,0.0111167]
[1765147087713,0.09385,89948.0,89947.0,0.1025667]
[1765147088117,0.09385,89948.0,89947.0,0.14246195]
[1765147088821,0.05033,89948.0,89947.0,0.14246195]
[1765147089222,0.05033,89948.0,89947.0,0.14248104]
[1765147089418,0.05033,89948.0,89947.0,0.1025667]
[1765147089625,0.004,89948.0,89947.0,0.1025667]
[1765147090020,0.00016678,89951.0,89947.0,0.1025667]
[1765147090021,0.00016678,89951.0,89950.0,0.08945]
[1765147090220,0.07906396,89980.0,89965.0,0.08945]
[1765147091018,0.07906396,89980.0,89965.0,0.1005645]
[1765147091214,0.00016678,89974.0,89965.0,0.1005645]
[1765147091419,0.02927788,89966.0,89965.0,0.1005645]
[1765147093029,0.00427788,89966.0,89965.0,0.1055645]
[1765147093229,0.05060788,89966.0,89965.0,0.1055645]
[1765147093426,0.05060788,89966.0,89965.0,0.1005645]
[1765147093630,0.05060788,89966.0,89965.0,0.1085645]
[1765147094330,0.05060788,89966.0,89965.0,0.09745]
[1765147094929,0.00427788,89966.0,89965.0,0.1085645]
[1765147096124,0.00427788,89966.0,89965.0,0.1005645]
[1765147096433,0.00427788,89966.0,89965.0,0.14848605]
[1765147096830,0.00427788,89966.0,89965.0,0.1085645]
[1765147099829,0.00427788,89966.0,89965.0,0.16838754]
[1765147101233,0.00427788,89966.0,89965.0,0.1085645]
[1765147107441,0.00427788,89966.0,89965.0,0.16838754]
[1765147107641,0.00427788,89966.0,89965.0,0.1085645]
[1765147108137,0.09030788,89966.0,89965.0,0.09602]
[1765147110138,0.09030788,89966.0,89965.0,0.008]
[1765147115643,0.09030788,89966.0,89965.0,0.05078]
[1765147115949,0.09030788,89966.0,89965.0,0.09602]
[1765147116550,0.00427788,89966.0,89965.0,0.09602]
[1765147124846,0.04647788,89966.0,89965.0,0.09602]
[1765147125048,0.00427788,89966.0,89965.0,0.09602]
[1765147128347,0.0807,90000.0,89999.0,0.08135]
[1765147129748,0.0692,90000.0,89999.0,0.08335]
[1765147130554,0.1077,90000.0,89999.0,0.08335]
[1765147130751,0.027,90000.0,89999.0,0.08335]
[1765147135155,0.00016667,90008.0,90005.0,0.0924596]
[1765147135461,0.00016667,90008.0,90007.0,0.08135]
[1765147135666,0.00016667,90008.0,90007.0,0.1211637]
[1765147135955,0.00016667,90008.0,90007.0,0.08135]
[1765147136164,0.07906396,90030.0,90009.0,0.02457]
[1765147136660,0.0422,90021.0,90020.0,0.0898276]
[1765147136857,0.08034,90021.0,90020.0,0.0898276]
[1765147137664,0.08034,90021.0,90020.0,0.07872]
[1765147137850,0.07753,90012.0,90011.0,0.08806547]
[1765147138560,0.03939,90012.0,90011.0,0.08806547]
[1765147139265,0.07753,90017.0,90016.0,0.0878982]
[1765147139765,0.01263,90027.0,90011.0,0.02416667]
[1765147139766,0.07753,90027.0,90026.0,0.07679]
[1765147140262,0.00016667,90030.0,90029.0,0.07679]
[1765147141666,0.07769667,90030.0,90029.0,0.07679]
[1765147141864,0.07969667,90030.0,90029.0,0.09079]
[1765147142253,0.07753,90023.0,90022.0,0.0111074]
[1765147142461,0.07753,90023.0,90022.0,0.0509574]
[1765147143664,0.07753,90023.0,90022.0,0.0878974]
[1765147143870,0.07753,90023.0,90022.0,0.0111074]
[1765147144075,0.07753,90012.0,90011.0,0.00016667]
[1765147145269,0.003,90023.0,90011.0,0.00016667]
[1765147145476,0.003,90023.0,90022.0,0.07679]
[1765147147175,0.00016667,90030.0,90029.0,0.07679]
[1765147147875,0.00016667,90030.0,90029.0,0.0878966]
[1765147148479,0.00316667,90030.0,90029.0,0.1198966]
[1765147149969,0.00027764,90046.0,90045.0,0.0878946]
[1765147150367,0.3183,90078.0,90045.0,0.07679]
[1765147150666,0.05883851,90080.0,90045.0,0.07679]
[1765147150667,0.07753,90071.0,90070.0,0.05926]
[1765147150866,0.07753,90071.0,90070.0,0.03985]
[1765147151061,0.13228407,90080.0,90062.0,0.07679]
[1765147151062,0.07753,90063.0,90062.0,0.07679]
[1765147151476,0.07753,90062.0,90061.0,0.00016657]
[1765147153677,0.07953,90062.0,90061.0,0.10290657]
[1765147155266,0.07953,90062.0,90061.0,0.02816657]
[1765147158085,0.07953,90062.0,90061.0,0.06689657]
[1765147158975,0.011096,90115.0,90079.0,0.07474]
[1765147159175,0.04071,90109.0,90108.0,0.07474]
[1765147159674,0.07739,90123.0,90110.0,0.0242]
[1765147159873,0.07739,90123.0,90122.0,0.0498251]
[1765147160074,0.07739,90123.0,90122.0,0.0858351]
[1765147160487,0.04071,90123.0,90122.0,0.0858351]
[1765147160686,0.07766739,90126.0,90125.0,0.07474]
[1765147160880,0.07766739,90126.0,90122.0,0.0110951]
[1765147161079,0.07739,90123.0,90122.0,0.0110951]
[1765147161590,0.07739,90118.0,90114.0,0.0110961]
[1765147162482,0.07739,90115.0,90114.0,0.0858361]
[1765147162678,0.00027739,90126.0,90113.0,0.00016646]
[1765147162679,0.07739,90114.0,90113.0,0.00016646]
[1765147163078,0.0110964,90112.0,90094.0,0.0110985]
[1765147163280,0.0110971,90107.0,90072.0,0.0242]
[1765147163478,0.0110971,90107.0,90091.0,0.0110989]
[1765147163683,0.13228407,90110.0,90082.0,0.02129542]
[1765147163973,0.0180961,90115.0,90103.0,0.0110975]
[1765147164189,0.00016608,90118.0,90103.0,0.0110975]
[1765147164696,0.04071,90108.0,90107.0,0.085837]
[1765147165989,0.00016608,90118.0,90109.0,0.0110967]
[1765147166197,0.00016608,90118.0,90117.0,0.07474]
[1765147166882,0.00027739,90126.0,90125.0,0.07474]
[1765147167081,0.00027739,90126.0,90125.0,0.0858348]
[1765147167386,0.00027739,90126.0,90116.0,0.14337997]
[1765147167387,0.011091,90156.0,90129.0,0.0242]
[1765147167790,0.011091,90156.0,90133.0,0.00016646]
[1765147167991,0.04071,90134.0,90133.0,0.07490646]
[1765147168387,0.07739,90134.0,90133.0,0.00016646]
[1765147169186,0.07739,90134.0,90133.0,0.03889646]
[1765147169692,0.07739,90134.0,90133.0,0.00016646]
[1765147170590,0.0110921,90147.0,90133.0,0.00716646]
[1765147170894,0.13228407,90150.0,90138.0,0.0110931]
[1765147171194,0.0110918,90149.0,90138.0,0.0110931]
[1765147171889,0.13228407,90160.0,90148.0,0.07474]
[1765147172195,0.04071,90149.0,90148.0,0.07474]
[1765147173186,0.14337457,90160.0,90149.0,0.0110918]
[1765147173494,0.04471,90150.0,90149.0,0.0858318]
[1765147173791,0.04071,90150.0,90149.0,0.0858318]
[1765147173993,0.13228407,90160.0,90153.0,0.0110913]
[1765147174295,0.04071,90157.0,90156.0,0.0110909]
[1765147174602,0.012,90160.0,90159.0,0.07474]
[1765147175691,0.13228407,90190.0,90165.0,0.07474]
[1765147176088,0.13228407,90190.0,90168.0,0.01763]
[1765147176290,0.02376,90192.0,90170.0,0.0110892]
[1765147176587,0.02376,90192.0,90168.0,0.01763]
[1765147176588,0.04071,90192.0,90191.0,0.03873]
[1765147176788,0.0110849,90206.0,90191.0,0.0498166]
[1765147176993,0.0110849,90206.0,90191.0,0.0858266]
[1765147177294,0.13228407,90210.0,90201.0,0.0110853]
[1765147178082,0.04071,90202.0,90194.0,0.0110862]
[1765147178283,0.07739,90195.0,90194.0,0.0498162]
[1765147178681,0.07739,90195.0,90194.0,0.0110862]
[1765147178884,0.13228407,90210.0,90191.0,0.00189291]
[1765147178885,0.07739,90192.0,90191.0,0.00189291]
[1765147179082,0.0884776,90183.0,90182.0,0.00016636]
[1765147179488,0.0884776,90183.0,90137.0,0.05139735]
[1765147179489,0.0110906,90159.0,90137.0,0.05139735]
[1765147179691,0.0110906,90159.0,90105.0,1.01008]
[1765147179692,0.07739,90150.0,90144.0,0.01123273]
[1765147179888,0.0884823,90145.0,90144.0,0.00014033]
[1765147180084,0.011094,90132.0,90117.0,0.0110957]
[1765147180799,0.00016605,90134.0,90115.0,0.00016636]
[1765147180800,0.07739,90116.0,90115.0,0.00016636]
[1765147181097,0.07750054,90116.0,90115.0,0.00016636]
[1765147182898,0.07750054,90116.0,90115.0,0.01316636]
[1765147183292,0.04082054,90116.0,90115.0,0.01116636]
[1765147184695,0.00011054,90116.0,90115.0,0.08615636]
[1765147185400,0.00011054,90116.0,90115.0,0.08715636]
[1765147185897,0.00011054,90116.0,90115.0,0.08915636]
[1765147186486,0.00011054,90116.0,90115.0,0.08715636]
[1765147187090,0.00011054,90116.0,90115.0,0.08915636]
[1765147188403,0.00016605,90134.0,90115.0,0.01416636]
[1765147189401,6.851e-05,90133.0,90115.0,0.01416636]
[1765147189696,6.851e-05,90133.0,90115.0,0.00016636]
[1765147189887,0.02112,90132.0,90115.0,0.01716636]
[1765147190394,0.02112,90132.0,90126.0,0.0110946]
[1765147191096,6.851e-05,90133.0,90132.0,0.07369]
[1765147193007,6.851e-05,90133.0,90132.0,0.08569]
[1765147194998,6.851e-05,90133.0,90132.0,0.07369]
[1765147195203,6.851e-05,90133.0,90132.0,0.08569]
[1765147196306,6.851e-05,90133.0,90132.0,0.08869]
[1765147196805,6.851e-05,90133.0,90132.0,0.08969]
[1765147197004,0.13228407,90160.0,90134.0,0.0110937]
[1765147197907,0.13228407,90160.0,90138.0,0.00016636]
[1765147197908,0.07515,90147.0,90138.0,0.00016636]
[1765147198106,0.07515,90155.0,90154.0,0.0847812]
[1765147198310,0.03713,90160.0,90159.0,0.0110905]
[1765147198701,0.03713,90160.0,90159.0,0.0480705]
[1765147199193,0.07867711,90169.0,90162.0,0.0110902]
[1765147199700,0.07515,90163.0,90162.0,0.0110902]
[1765147200106,0.07515,90163.0,90162.0,0.0480702]
[1765147200295,0.03802,90167.0,90159.0,0.008]
[1765147200499,0.02112,90188.0,90159.0,0.008]
[1765147200500,0.07515,90160.0,90159.0,0.008]
[1765147200701,0.07515,90128.0,90127.0,0.0396365]
[1765147200897,0.03713,90116.0,90115.0,0.011096]
[1765147201307,0.03713,90116.0,90115.0,0.02157988]
[1765147201499,0.03713,90116.0,90115.0,0.05554988]
[1765147201699,0.03713,90116.0,90115.0,0.09023988]
[1765147201905,0.03713,90116.0,90115.0,0.079756]
[1765147202105,0.07047,90124.0,90123.0,0.0110949]
[1765147203512,0.07047,90120.0,90119.0,0.0110954]
[1765147205103,0.07047,90120.0,90119.0,0.0160954]
[1765147205707,0.07047,90120.0,90119.0,0.005]
[1765147206017,0.07047,90107.0,90106.0,0.00016636]
[1765147207914,0.07047,90107.0,90106.0,0.00216636]
[1765147208518,0.07047,90107.0,90106.0,0.00016636]
[1765147208818,0.07147,90107.0,90106.0,0.00016636]
[1765147209918,0.07147,90107.0,90086.0,0.00027751]
[1765147210112,0.07147,90107.0,90079.0,0.05945475]
[1765147210113,0.0815713,90072.0,90071.0,0.08730934]
[1765147210813,0.0815719,90067.0,90051.0,0.0326238]
[1765147211116,0.0456244,90047.0,90038.0,0.05945475]
[1765147211312,0.0815744,90047.0,90025.0,0.02152]
[1765147211619,0.0111053,90040.0,90028.0,0.0111066]
[1765147211915,0.07079,90029.0,90022.0,0.0111073]
[1765147212113,0.07079,90023.0,90022.0,0.0111073]
[1765147212914,0.07079,90023.0,90016.0,0.00016656]
[1765147212915,0.07079,90023.0,90016.0,0.01127466]
[1765147213219,0.07079,90017.0,90016.0,0.00016656]
[1765147213610,0.07088751,90017.0,90016.0,0.00016656]
[1765147214005,0.03521751,90017.0,90016.0,0.04833476]
[1765147214211,9.751e-05,90017.0,90016.0,0.08714476]
[1765147214814,0.07867711,90040.0,90034.0,0.048166]
[1765147215031,0.07867711,90040.0,90034.0,0.086976]
[1765147215814,0.07867711,90050.0,90034.0,0.086976]
[1765147216021,0.07867711,90050.0,90034.0,0.087976]
[1765147219007,0.07867711,90060.0,90034.0,0.087976]
[1765147219212,0.07867711,90070.0,90059.0,0.03706]
[1765147220420,0.00016656,90074.0,90060.0,0.0111028]
[1765147220621,0.10967711,90070.0,90069.0,0.03706]
[1765147220824,0.031,90070.0,90069.0,0.03706]
[1765147221126,0.031,90070.0,90069.0,0.07587]
[1765147221518,0.00016656,90074.0,90069.0,0.0869717]
[1765147221720,0.03316656,90074.0,90069.0,0.0869717]
[1765147222826,0.03316656,90074.0,90073.0,0.03706]
[1765147223129,0.00016656,90074.0,90073.0,0.03706]
[1765147223424,0.03528656,90074.0,90073.0,0.03706]
[1765147223824,0.03528656,90074.0,90073.0,0.03806]
[1765147224027,0.06828656,90074.0,90073.0,0.03806]
[1765147224217,0.06828656,90074.0,90073.0,0.07687]
[1765147224218,0.03316656,90074.0,90073.0,0.07687]
[1765147226620,0.00016656,90074.0,90073.0,0.07787]
[1765147230231,0.07095656,90074.0,90073.0,0.07787]
[1765147230729,0.07095656,90074.0,90073.0,0.002]
[1765147232020,0.07079,90056.0,90055.0,0.00016656]
[1765147233025,0.01181,90060.0,90040.0,0.0111051]
[1765147233026,0.07079,90041.0,90040.0,0.0111051]
[1765147233233,0.07079,90041.0,90035.0,0.0111058]
[1765147233434,0.07079,90036.0,90035.0,0.0111058]
[1765147234232,0.07079,90032.0,90026.0,0.00016656]
[1765147234533,0.03512,90027.0,90026.0,0.01127356]
[1765147235234,0.07079,90027.0,90026.0,0.01127356]
[1765147235734,0.07867711,90036.0,90026.0,0.08714356]
[1765147236437,0.07867711,90036.0,90026.0,0.08914356]
[1765147236629,0.07079,90032.0,90026.0,0.00216656]
[1765147236837,0.07079,90032.0,90031.0,0.03706]
[1765147237636,0.00016656,90045.0,90026.0,0.00216656]
[1765147237637,0.00016656,90045.0,90044.0,0.03706]
[1765147237839,0.03528656,90045.0,90044.0,0.03706]
[1765147238136,0.03528656,90045.0,90044.0,0.07587]
[1765147238322,0.07079,90043.0,90042.0,0.011105]
[1765147238526,0.07079,90043.0,90042.0,0.048165]
[1765147239437,0.07079,90043.0,90038.0,0.0111055]
[1765147240138,0.07179,90043.0,90038.0,0.0111055]
[1765147240532,0.07079,90043.0,90038.0,0.0111055]
[1765147240932,0.07079,90043.0,90026.0,0.00016656]
[1765147242438,0.07079,90043.0,90026.0,0.00516656]
[1765147242742,0.07867711,90040.0,90026.0,0.00516656]
[1765147243334,0.00016656,90045.0,90026.0,0.00516656]
[1765147243943,0.011105,90043.0,90030.0,0.0111064]
[1765147244144,0.07018,90035.0,90034.0,0.0813659]
[1765147246443,0.07118,90035.0,90034.0,0.0813659]
[1765147246645,0.001,90035.0,90034.0,0.0813659]
[1765147248545,0.03579656,90045.0,90044.0,0.07026]
[1765147248738,0.07034656,90045.0,90044.0,0.07026]
[1765147249946,0.07234656,90045.0,90044.0,0.07026]
[1765147250153,0.07234656,90045.0,90044.0,0.03549]
[1765147251742,0.07018,90042.0,90041.0,0.046595]
[1765147253159,0.07118,90042.0,90041.0,0.07026]
[1765147253657,0.07018,90037.0,90036.0,0.0813657]
[1765147255159,0.07018,90037.0,90036.0,0.0823657]
[1765147256546,0.07018,90037.0,90036.0,0.001]
[1765147257356,0.07018,90037.0,90036.0,0.06926]
[1765147258357,0.03228656,90045.0,90044.0,0.06544]
[1765147258562,0.06507656,90045.0,90044.0,0.06544]
[1765147259758,0.06707656,90045.0,90044.0,0.06544]
[1765147261260,0.00216656,90045.0,90044.0,0.06544]
[1765147262768,0.00116656,90045.0,90044.0,0.06544]
[1765147263068,0.03328656,90045.0,90044.0,0.06544]
[1765147263368,0.06607656,90045.0,90044.0,0.06544]
[1765147263663,0.00116656,90045.0,90044.0,0.06544]
[1765147264262,0.00216656,90045.0,90044.0,0.06544]
[1765147264772,0.00016656,90045.0,90044.0,0.06544]
[1765147264971,0.00016656,90045.0,90044.0,0.06644]
[1765147265365,0.00016656,90045.0,90044.0,0.06544]
[1765147265670,0.00016656,90045.0,90044.0,0.06744]
[1765147266966,0.00016656,90045.0,90044.0,0.06544]
[1765147267174,0.00016656,90045.0,90044.0,0.06644]
[1765147268072,0.0760124,90064.0,90063.0,0.06544]
[1765147268670,0.03212,90075.0,90074.0,0.03277]
[1765147268871,0.0760109,90075.0,90074.0,0.06544]
[1765147269173,0.03212,90083.0,90070.0,0.01872]
[1765147269369,0.00016656,90084.0,90070.0,0.01872]
[1765147269370,0.00016656,90084.0,90083.0,0.06544]
[1765147270476,0.03212,90107.0,90106.0,0.06544]
[1765147271982,0.00016656,90116.0,90106.0,0.06544]
[1765147272176,0.029,90107.0,90106.0,0.07731196]
[1765147275381,0.00016656,90116.0,90115.0,0.06213]
[1765147275681,0.0110926,90143.0,90115.0,0.06213]
[1765147275876,0.0110926,90143.0,90120.0,0.13221213]
[1765147276086,0.0727626,90143.0,90142.0,0.03292]
[1765147276379,0.06167,90143.0,90142.0,0.06213]
[1765147277080,0.03109,90150.0,90149.0,0.06213]
[1765147277376,0.06167,90150.0,90149.0,0.06213]
[1765147277974,0.06167,90142.0,90135.0,0.0110935]
[1765147278276,0.06167,90106.0,90100.0,0.0110978]
[1765147278482,0.03109,90096.0,90095.0,0.05466243]
[1765147278775,0.13221213,90111.0,90090.0,0.03292]
[1765147278776,0.03109,90091.0,90090.0,0.03292]
[1765147278980,0.06167,90091.0,90090.0,0.03292]
[1765147279168,0.03109,90080.0,90079.0,0.01075198]
[1765147279373,0.03109,90080.0,90070.0,0.00016646]
[1765147279588,0.03109,90080.0,90074.0,0.011101]
[1765147279778,0.03109,90080.0,90070.0,0.00016646]
[1765147279968,0.03109,90080.0,90079.0,0.03292]
[1765147280482,0.06167,90080.0,90079.0,0.03292]
[1765147281281,0.06167,90080.0,90079.0,0.04592]
[1765147282676,0.06167,90080.0,90079.0,0.03292]
[1765147282877,0.06167,90080.0,90079.0,0.05592]
[1765147283582,0.06167,90080.0,90079.0,0.023]
[1765147286484,0.06167,90071.0,90070.0,0.00016646]
[1765147287988,0.06167,90071.0,90070.0,0.02616646]
[1765147288782,0.06167,90051.0,90050.0,0.00012961]
[1765147288980,0.06167,90051.0,90050.0,0.03304961]
[1765147289886,0.06167,90051.0,90050.0,0.04415361]
[1765147290191,0.06167,90051.0,90050.0,0.06015361]
[1765147290490,0.06167,90051.0,90050.0,0.08936361]
[1765147291278,0.00016655,90060.0,90050.0,0.08936361]
[1765147291690,0.00016655,90060.0,90059.0,0.03292]
[1765147291691,0.06183655,90060.0,90059.0,0.03292]
[1765147292988,0.06583655,90060.0,90059.0,0.03292]
[1765147293294,0.06583655,90060.0,90053.0,0.0111035]
[1765147293295,0.06167,90054.0,90053.0,0.0111035]
[1765147293788,0.06167,90054.0,90053.0,0.0440235]